fUSD/lending_fUSD_20240708
["ID","MTS","AMOUNT","RATE_DAILY","PERIOD"]
[331491967,1720440115315,-500.0,0.00049315,120]
[331491968,1720440115367,-500.0,0.00049315,120]
[331491969,1720440115419,-500.0,0.00049315,120]
[331491970,1720440115473,-501.75789947,0.00049315,120]
[331491971,1720440115525,-807.07,0.00049315,120]
[331491972,1720440115577,-500.0,0.00049315,120]
[331491973,1720440115629,-500.0,0.00049315,120]
[331491974,1720440115684,-500.0,0.00049315,120]
[331491975,1720440115736,-500.0,0.00049315,120]
[331491976,1720440115788,-800.07,0.00049315,120]
[331491977,1720440115838,-500.0,0.00049315,120]
[331491978,1720440115887,-500.0,0.00049315,120]
[331491979,1720440115939,-339.93234778,0.00049315,120]
[331491980,1720440115996,-500.0,0.00049315,120]
[331491981,1720440116055,-500.0,0.00049315,120]
[331491982,1720440116110,-502.7511266,0.00049315,120]
[331491983,1720440116161,-500.0,0.00049315,120]
[331491984,1720440116210,-367.3509541,0.00049315,120]
[331491985,1720440116257,-500.0,0.00049315,120]
[331491986,1720440116305,-967.69,0.00049315,120]
[331491987,1720440116352,-500.0,0.00049315,120]
[331491988,1720440116398,-500.0,0.00049315,120]
[331491989,1720440116444,-383.00436173,0.00049315,120]
[331491990,1720440116490,-500.0,0.00049315,120]
[331491991,1720440116747,-500.0,0.00049315,120]
[331491992,1720440116799,-1110.78,0.00049315,120]
[331491993,1720440116848,-500.0,0.00049315,120]
[331491994,1720440116898,-500.0,0.00049315,120]
[331491995,1720440116951,-593.07,0.00049315,120]
[331491996,1720440117007,-500.0,0.00049315,120]
[331491997,1720440117061,-666.97,0.00049315,120]
[331491998,1720440117113,-500.0,0.00049315,120]
[331491999,1720440117167,-500.0,0.00049315,120]
[331492000,1720440117218,-663.11,0.00049315,120]
[331492001,1720440117275,-500.0,0.00049315,120]
[331492002,1720440117327,-500.0,0.00049315,120]
[331492003,1720440117381,-500.0,0.00049315,120]
[331492004,1720440117435,-586.75,0.00049315,120]
[331492005,1720440117491,-179.88561575,0.00049315,120]
[331492006,1720440117545,-500.0,0.00049315,120]
[331492007,1720440117596,-500.0,0.00049315,120]
[331492008,1720440117648,-500.0,0.00049315,120]
[331492009,1720440117699,-361.02264143,0.00049315,120]
[331492010,1720440117756,-500.0,0.00049315,120]
[331492011,1720440117812,-500.0,0.00049315,120]
[331492012,1720440117865,-500.0,0.00049315,120]
[331492013,1720440117923,-500.0,0.00049315,120]
[331492014,1720440117982,-500.0,0.00049315,120]
[331492015,1720440118039,-594.57,0.00049315,120]
[331492016,1720440118094,-500.0,0.00049315,120]
[331492017,1720440118152,-500.0,0.00049315,120]
[331492018,1720440118209,-500.0,0.00049315,120]
[331492019,1720440118268,-208.67198124,0.00049315,120]
[331492020,1720440118325,-500.0,0.00049315,120]
[331492021,1720440118382,-500.0,0.00049315,120]
[331492022,1720440118439,-500.0,0.00049315,120]
[331492023,1720440118496,-500.0,0.00049315,120]
[331492024,1720440118551,-500.0,0.00049315,120]
[331492025,1720440118606,-364.43528181,0.00049315,120]
[331492026,1720440118664,-372.30421635,0.00049315,120]
[331492027,1720440118723,-500.0,0.00049315,120]
[331492028,1720440118782,-731.67,0.00049315,120]
[331492029,1720440118842,-500.0,0.00049315,120]
[331492030,1720440118900,-500.0,0.00049315,120]
[331492031,1720440118963,-500.0,0.00049315,120]
[331492032,1720440119024,-500.0,0.00049315,120]
[331492033,1720440119082,-500.0,0.00049315,120]
[331492034,1720440119142,-727.03,0.00049315,120]
[331492035,1720440119201,-500.0,0.00049315,120]
[331492036,1720440119259,-500.0,0.00049315,120]
[331492037,1720440119317,-500.0,0.00049315,120]
[331492038,1720440119371,-504.38796825,0.00049315,120]
[331492039,1720440119427,-500.0,0.00049315,120]
[331492040,1720440119484,-500.0,0.00049315,120]
[331492041,1720440119539,-500.0,0.00049315,120]
[331492042,1720440119594,-500.0,0.00049315,120]
[331492043,1720440119647,-500.0,0.00049315,120]
[331492044,1720440119704,-285.05357653,0.00049315,120]
[331492045,1720440119758,-556.36,0.00049315,120]
[331492046,1720440119810,-500.0,0.00049315,120]
[331492047,1720440119863,-500.0,0.00049315,120]
[331492048,1720440119915,-232.21436039,0.00049315,120]
[331492049,1720440119971,-678.58,0.00049315,120]
[331492050,1720440120026,-500.0,0.00049315,120]
[331492051,1720440120081,-828.76,0.00049315,120]
[331492052,1720440120139,-507.09,0.00049315,120]
[331492053,1720440120195,-500.0,0.00049315,120]
[331492054,1720440120250,-500.0,0.00049315,120]
[331492055,1720440120307,-500.0,0.00049315,120]
[331492056,1720440120362,-500.0,0.00049315,120]
[331492057,1720440120420,-500.0,0.00049315,120]
[331492058,1720440120476,-503.77687745,0.00049315,120]
[331492059,1720440120531,-500.0,0.00049315,120]
[331492060,1720440120584,-500.0,0.00049315,120]
[331492061,1720440120637,-500.0,0.00049315,120]
[331492062,1720440120687,-500.0,0.00049315,120]
[331492063,1720440120738,-500.0,0.00049315,120]
[331492064,1720440120789,-500.0,0.00049315,120]
[331492065,1720440120841,-500.0,0.00049315,120]
[331492066,1720440120895,-500.0,0.00049315,120]
[331492067,1720440120948,-500.0,0.00049315,120]
[331492068,1720440121002,-504.5831825,0.00049315,120]
[331492069,1720440121056,-500.0,0.00049315,120]
[331492070,1720440121108,-500.0,0.00049315,120]
[331492071,1720440121160,-500.0,0.00049315,120]
[331492072,1720440121215,-564.32,0.00049315,120]
[331492073,1720440121268,-500.0,0.00049315,120]
[331492074,1720440121320,-560.45,0.00049315,120]
[331492075,1720440121372,-500.0,0.00049315,120]
[331492076,1720440121426,-890.2,0.00049315,120]
[331492077,1720440121477,-500.0,0.00049315,120]
[331492078,1720440121528,-500.0,0.00049315,120]
[331492079,1720440121580,-730.6,0.00049315,120]
[331492080,1720440121634,-500.0,0.00049315,120]
[331492081,1720440121689,-500.0,0.00049315,120]
[331492082,1720440121743,-500.0,0.00049315,120]
[331492083,1720440121795,-500.0,0.00049315,120]
[331492084,1720440121848,-500.0,0.00049315,120]
[331492085,1720440121900,-795.04,0.00049315,120]
[331492086,1720440121954,-223.24548765,0.00049315,120]
[331492087,1720440122012,-526.19076053,0.00049315,120]
[331492088,1720440122068,-500.0,0.00049315,120]
[331492089,1720440122126,-523.6614662,0.00049315,120]
[331492090,1720440122189,-500.0,0.00049315,120]
[331492091,1720440122253,-500.0,0.00049315,120]
[331492092,1720440122317,-618.01,0.00049315,120]
[331492093,1720440122374,-500.0,0.00049315,120]
[331492094,1720440122437,-500.0,0.00049315,120]
[331492095,1720440122701,-551.18,0.00049315,120]
[331492096,1720440122766,-500.0,0.00049315,120]
[331492097,1720440122822,-500.0,0.00049315,120]
[331492098,1720440122874,-500.0,0.00049315,120]
[331492099,1720440122933,-788.58,0.00049315,120]
[331492100,1720440122987,-500.0,0.00049315,120]
[331492101,1720440123042,-500.0,0.00049315,120]
[331492102,1720440123092,-500.0,0.00049315,120]
[331492103,1720440123142,-500.0,0.00049315,120]
[331492104,1720440123191,-500.0,0.00049315,120]
[331492105,1720440123242,-500.0,0.00049315,30]
[331492106,1720440123292,-500.0,0.00049315,120]
[331492107,1720440123342,-596.33089227,0.00049315,120]
[331492108,1720440123392,-500.0,0.00049315,120]
[331492109,1720440123442,-500.0,0.00049315,120]
[331492110,1720440123492,-720.18,0.00049315,120]
[331492111,1720440123543,-500.0,0.00049315,120]
[331492112,1720440123596,-500.0,0.00049315,120]
[331492113,1720440123645,-500.0,0.00049315,120]
[331492114,1720440123694,-500.0,0.00049315,120]
[331492115,1720440123745,-400.55828714,0.00049315,120]
[331492116,1720440123793,-500.0,0.00049315,120]
[331492117,1720440123844,-511.48,0.00049315,120]
[331492118,1720440123896,-500.0,0.00049315,120]
[331492119,1720440123949,-456.34788039,0.00049315,120]
[331492120,1720440124005,-500.0,0.00049315,120]
[331492121,1720440124062,-500.0,0.00049315,120]
[331492122,1720440124116,-633.87,0.00049315,120]
[331492123,1720440124167,-500.0,0.00049315,120]
[331492124,1720440124218,-500.0,0.00049315,120]
[331492125,1720440124268,-885.43,0.00049315,120]
[331492126,1720440124318,-500.0,0.00049315,120]
[331492127,1720440124368,-536.5,0.00049315,120]
[331492128,1720440124420,-500.0,0.00049315,120]
[331492129,1720440124469,-500.0,0.00049315,120]
[331492130,1720440124522,-500.0,0.00049315,120]
[331492131,1720440124573,-500.0,0.00049315,120]
[331492132,1720440124627,-500.0,0.00049315,120]
[331492133,1720440124684,-500.0,0.00049315,120]
[331492134,1720440124737,-500.0,0.00049315,120]
[331492135,1720440124792,-338.15885458,0.00049315,120]
[331492136,1720440124844,-500.0,0.00049315,120]
[331492137,1720440124896,-500.0,0.00049315,120]
[331492138,1720440124952,-500.0,0.00049315,120]
[331492139,1720440125006,-500.0,0.00049315,120]
[331492140,1720440125065,-246.74906055,0.00049315,120]
[331492141,1720440125122,-500.0,0.00049315,120]
[331492142,1720440125181,-500.0,0.00049315,120]
[331492143,1720440125239,-739.48,0.00049315,120]
[331492144,1720440125294,-500.0,0.00049315,120]
[331492145,1720440125348,-500.0,0.00049315,120]
[331492146,1720440125405,-509.22758085,0.00049315,120]
[331492147,1720440125460,-500.0,0.00049315,120]
[331492148,1720440125515,-500.0,0.00049315,120]
[331492149,1720440125569,-556.22,0.00049315,120]
[331492150,1720440125620,-500.0,0.00049315,120]
[331492151,1720440125675,-500.0,0.00049315,120]
[331492152,1720440125726,-500.0,0.00049315,120]
[331492153,1720440125776,-500.0,0.00049315,120]
[331492154,1720440125831,-500.0,0.00049315,120]
[331492155,1720440125885,-500.0,0.00049315,120]
[331492156,1720440125940,-500.0,0.00049315,120]
[331492157,1720440125996,-500.0,0.00049315,120]
[331492158,1720440126052,-218.68,0.00049315,120]
[331492159,1720440126105,-500.0,0.00049315,120]
[331492160,1720440126160,-658.89,0.00049315,120]
[331492161,1720440126215,-510.85910607,0.00049315,120]
[331492162,1720440126265,-501.61192676,0.00049315,120]
[331492163,1720440126314,-500.0,0.00049315,120]
[331492164,1720440126366,-500.0,0.00049315,120]
[331492165,1720440126419,-510.55508225,0.00049315,120]
[331492166,1720440126474,-500.0,0.00049315,120]
[331492167,1720440126528,-498.36542227,0.00049315,120]
[331492168,1720440126582,-500.0,0.00049315,120]
[331492169,1720440126636,-500.0,0.00049315,120]
[331492170,1720440126689,-500.0,0.00049315,120]
[331492171,1720440126741,-150.04236776,0.00049315,120]
[331492172,1720440126792,-500.0,0.00049315,120]
[331492173,1720440126844,-500.0,0.00049315,120]
[331492174,1720440126895,-500.0,0.00049315,120]
[331492175,1720440126947,-500.0,0.00049315,120]
[331492176,1720440127004,-176.30718567,0.00049315,120]
[331492177,1720440127060,-506.39699227,0.00049315,120]
[331492178,1720440127113,-474.85338575,0.00049315,120]
[331492179,1720440127165,-500.0,0.00049315,120]
[331492180,1720440127218,-500.0,0.00049315,120]
[331492181,1720440127270,-317.38576229,0.00049315,120]
[331492182,1720440127325,-500.0,0.00049315,120]
[331492183,1720440127388,-500.0,0.00049315,120]
[331492184,1720440127444,-500.0,0.00049315,120]
[331492185,1720440127495,-500.0,0.00049315,120]
[331492186,1720440127546,-188.87549685,0.00049315,120]
[331492187,1720440127600,-500.0,0.00049315,120]
[331492188,1720440127650,-501.82657503,0.00049315,120]
[331492189,1720440127704,-502.68994468,0.00049315,120]
[331492190,1720440127760,-500.0,0.00049315,120]
[331492191,1720440127813,-555.51547238,0.00049315,120]
[331492192,1720440127866,-1000.0,0.00049315,120]
[331492193,1720440127919,-500.0,0.00049315,120]
[331492194,1720440127974,-649.37888072,0.00049315,120]
[331492195,1720440128027,-403.9755498,0.00049315,120]
[331492196,1720440128080,-500.0,0.00049315,120]
[331492197,1720440128134,-500.0,0.00049315,120]
[331492198,1720440128186,-184.07925986,0.00049315,120]
[331492199,1720440128238,-500.0,0.00049315,120]
[331492200,1720440128492,-500.0,0.00049315,120]
[331492201,1720440128543,-500.0,0.00049315,120]
[331492203,1720440128594,-500.0,0.00049315,120]
[331492204,1720440128645,-1110.08,0.00049315,120]
[331492205,1720440128696,-500.0,0.00049315,120]
[331492206,1720440128747,-500.0,0.00049315,120]
[331492207,1720440128798,-500.0,0.00049315,120]
[331492208,1720440128850,-217.88697837,0.00049315,120]
[331492209,1720440128902,-500.65126294,0.00049315,120]
[331492210,1720440128958,-287.57,0.00049315,120]
[331492211,1720440129012,-500.0,0.00049315,120]
[331492212,1720440129068,-500.0,0.00049315,120]
[331492213,1720440129123,-397.63294424,0.00049315,120]
[331492214,1720440129181,-2819.9,0.00049315,120]
[331492215,1720440129236,-500.0,0.00049315,120]
[331492216,1720440129292,-500.0,0.00049315,120]
[331492217,1720440129348,-500.0,0.00049315,120]
[331492218,1720440129405,-500.0,0.00049315,120]
[331492219,1720440129465,-502.09612859,0.00049315,120]
[331492220,1720440129522,-500.0,0.00049315,120]
[331492221,1720440129580,-412.43238709,0.00049315,120]
[331492222,1720440129637,-629.25300684,0.00049315,120]
[331492223,1720440129695,-500.0,0.00049315,120]
[331492224,1720440129751,-500.0,0.00049315,120]
[331492225,1720440129809,-735.58,0.00049315,120]
[331492226,1720440129872,-200.0,0.00049315,120]
[331492227,1720440129935,-500.0,0.00049315,120]
[331492228,1720440129995,-224.5849432,0.00049315,120]
[331492229,1720440130057,-297.7259196,0.00049315,120]
[331492230,1720440130116,-500.0,0.00049315,120]
[331492231,1720440130173,-502.9497028,0.00049315,120]
[331492232,1720440130229,-502.657702,0.00049315,120]
[331492233,1720440130284,-500.0,0.00049315,120]
[331492234,1720440130339,-500.0,0.00049315,30]
[331492235,1720440130394,-500.0,0.00049315,120]
[331492236,1720440130449,-500.0,0.00049315,120]
[331492237,1720440130501,-419.64642576,0.00049315,120]
[331492238,1720440130554,-527.16983167,0.00049315,120]
[331492239,1720440130607,-500.0,0.00049315,120]
[331492240,1720440130661,-500.0,0.00049315,120]
[331492241,1720440130716,-508.6,0.00049315,120]
[331492242,1720440130770,-150.0,0.00049315,120]
[331492243,1720440130824,-500.0,0.00049315,120]
[331492244,1720440130879,-761.41,0.00049315,120]
[331492245,1720440130942,-757.98,0.00049315,120]
[331492246,1720440130997,-500.0,0.00049315,120]
[331492247,1720440131055,-500.0,0.00049315,120]
[331492248,1720440131109,-500.0,0.00049315,120]
[331492249,1720440131164,-501.14524148,0.00049315,30]
[331492250,1720440131221,-744.56,0.00049315,120]
[331492251,1720440131277,-500.0,0.00049315,120]
[331492252,1720440131331,-491.49571341,0.00049315,120]
[331492253,1720440131383,-571.86,0.00049315,120]
[331492254,1720440131439,-820.08,0.00049315,120]
[331492255,1720440131492,-429.71220721,0.00049315,120]
[331492256,1720440131545,-501.84219775,0.00049315,120]
[331492257,1720440131597,-976.88,0.00049315,120]
[331492258,1720440131647,-500.0,0.00049315,120]
[331492259,1720440131699,-266.77,0.00049315,120]
[331492260,1720440131751,-503.63057594,0.00049315,120]
[331492261,1720440131805,-500.0,0.00049315,120]
[331492262,1720440131859,-502.78043326,0.00049315,120]
[331492263,1720440131914,-795.49,0.00049315,120]
[331492264,1720440131973,-501.10939563,0.00049315,120]
[331492265,1720440132026,-633.46,0.00049315,120]
[331492266,1720440132078,-502.61377269,0.00049315,120]
[331492267,1720440132130,-501.3423284,0.00049315,120]
[331492268,1720440132187,-503.76272824,0.00049315,120]
[331492269,1720440132243,-1023.57,0.00049315,120]
[331492270,1720440132295,-500.0,0.00049315,120]
[331492271,1720440132348,-548.74121579,0.00049315,120]
[331492272,1720440132399,-2509.7,0.00049315,120]
[331492273,1720440132455,-500.0,0.00049315,120]
[331492274,1720440132511,-500.0,0.00049315,120]
[331492275,1720440132567,-500.0,0.00049315,120]
[331492276,1720440132622,-500.0,0.00049315,120]
[331492277,1720440132679,-500.0,0.00049315,120]
[331492278,1720440132731,-501.75261957,0.00049315,120]
[331492279,1720440132790,-732.16,0.00049315,120]
[331492280,1720440132851,-500.0,0.00049315,120]
[331492281,1720440132912,-500.0,0.00049315,120]
[331492282,1720440132978,-611.34,0.00049315,120]
[331492283,1720440133040,-500.0,0.00049315,120]
[331492284,1720440133104,-500.0,0.00049315,120]
[331492285,1720440133164,-501.70338596,0.00049315,120]
[331492286,1720440133226,-276.06829627,0.00049315,120]
[331492287,1720440133286,-500.0,0.00049315,120]
[331492288,1720440133344,-500.0,0.00049315,120]
[331492290,1720440133404,-500.0,0.00049315,120]
[331492291,1720440133461,-596.04,0.00049315,120]
[331492292,1720440133520,-607.17735742,0.00049315,120]
[331492293,1720440133578,-584.19,0.00049315,120]
[331492294,1720440133640,-500.0,0.00049315,120]
[331492295,1720440133706,-503.3320276,0.00049315,120]
[331492296,1720440133771,-500.0,0.00049315,120]
[331492297,1720440133836,-500.0,0.00049315,120]
[331492298,1720440133900,-1250.0,0.00049315,120]
[331492299,1720440133960,-500.0,0.00049315,120]
[331492300,1720440134018,-500.0,0.00049315,120]
[331492301,1720440134073,-500.0,0.00049315,120]
[331492302,1720440134133,-500.0,0.00049315,120]
[331492303,1720440134193,-500.0,0.00049315,120]
[331492304,1720440134255,-174.79762084,0.00049315,120]
[331492305,1720440134317,-1319.76,0.00049315,120]
[331492306,1720440134581,-500.0,0.00049315,120]
[331492307,1720440134634,-491.00433302,0.00049315,120]
[331492308,1720440134692,-500.0,0.00049315,120]
[331492309,1720440134745,-500.0,0.00049315,120]
[331492310,1720440134798,-500.0,0.00049315,120]
[331492311,1720440134853,-500.0,0.00049315,120]
[331492312,1720440134907,-500.0,0.00049315,120]
[331492313,1720440134964,-500.0,0.00049315,120]
[331492314,1720440135021,-375.20156902,0.00049315,120]
[331492315,1720440135076,-500.0,0.00049315,120]
[331492316,1720440135131,-500.0,0.00049315,120]
[331492317,1720440135190,-500.0,0.00049315,120]
[331492318,1720440135246,-500.0,0.00049315,120]
[331492319,1720440135301,-304.38267388,0.00049315,120]
[331492320,1720440135356,-777.23,0.00049315,120]
[331492321,1720440135408,-500.0,0.00049315,120]
[331492322,1720440135460,-500.0,0.00049315,120]
[331492323,1720440135514,-786.03,0.00049315,120]
[331492324,1720440135566,-500.0,0.00049315,120]
[331492325,1720440135619,-500.0,0.00049315,120]
[331492326,1720440135674,-1320.46,0.00049315,120]
[331492327,1720440135728,-390.95466746,0.00049315,120]
[331492328,1720440135783,-993.73,0.00049315,120]
[331492329,1720440135838,-468.16812092,0.00049315,120]
[331492330,1720440135893,-500.0,0.00049315,120]
[331492331,1720440135948,-857.25,0.00049315,120]
[331492332,1720440136002,-229.36836431,0.00049315,120]
[331492333,1720440136060,-500.0,0.00049315,120]
[331492334,1720440136114,-500.0,0.00049315,120]
[331492335,1720440136168,-500.0,0.00049315,120]
[331492336,1720440136224,-500.0,0.00049315,120]
[331492337,1720440136276,-163.98024597,0.00049316,30]
[331492338,1720440136330,-661.07927889,0.00049334,30]
[331492339,1720440136385,-676.70274913,0.00049356,30]
[331492340,1720440136439,-170.42829098,0.00049538,30]
[331492341,1720440136491,-161.90866246,0.00049559,30]
[331492342,1720440136544,-222.15961385,0.00049564,30]
[331492343,1720440136595,-201.22,0.00049588,120]
[331492344,1720440136647,-4518.2,0.00049589,120]
[331492345,1720440136699,-3467.68,0.00049589,120]
[331492346,1720440136750,-3285.94,0.00049589,120]
[331492347,1720440136800,-843.34,0.00049589,120]
[331492348,1720440136851,-500.0,0.00049589,120]
[331492349,1720440136903,-500.0,0.00049589,120]
[331492350,1720440136958,-579.73,0.00049589,120]
[331492351,1720440137013,-7921.19,0.00049589,120]
[331492352,1720440137067,-500.0,0.00049589,120]
[331492353,1720440137120,-500.0,0.00049589,120]
[331492354,1720440137173,-4816.6,0.00049589,120]
[331492355,1720440137225,-2995.09,0.00049589,120]
[331492356,1720440137277,-521.56,0.00049589,120]
[331492357,1720440137330,-500.0,0.00049589,120]
[331492358,1720440137382,-500.0,0.00049589,120]
[331492359,1720440137437,-500.0,0.00049589,120]
[331492360,1720440137490,-500.0,0.00049589,120]
[331492361,1720440137542,-505.66383325,0.00049589,120]
[331492362,1720440137594,-500.0,0.00049589,120]
[331492363,1720440137648,-500.0,0.00049589,120]
[331492364,1720440137705,-500.0,0.00049589,120]
[331492365,1720440137758,-500.0,0.00049589,120]
[331492366,1720440137808,-500.0,0.00049589,120]
[331492367,1720440137859,-5616.29,0.00049589,120]
[331492368,1720440137912,-4754.74,0.00049589,120]
[331492369,1720440137972,-500.0,0.00049589,120]
[331492370,1720440138026,-500.0,0.00049589,120]
[331492371,1720440138080,-2818.99,0.00049589,120]
[331492372,1720440138133,-3610.51,0.00049589,120]
[331492373,1720440138187,-2101.17,0.00049589,120]
[331492374,1720440138240,-7384.37,0.00049589,120]
[331492375,1720440138294,-965.22,0.00049589,120]
[331492376,1720440138350,-500.0,0.00049589,120]
[331492377,1720440138407,-13611.45,0.00049589,120]
[331492378,1720440138467,-500.0,0.00049589,120]
[331492379,1720440138520,-500.0,0.00049589,120]
[331492380,1720440138572,-547.56,0.00049589,120]
[331492381,1720440138626,-500.0,0.00049589,120]
[331492382,1720440138679,-500.0,0.00049589,120]
[331492383,1720440138730,-583.78,0.00049589,120]
[331492384,1720440138782,-500.0,0.00049589,120]
[331492385,1720440138833,-3854.26,0.00049589,120]
[331492386,1720440138886,-317.76,0.00049589,120]
[331492387,1720440138944,-500.0,0.00049589,120]
[331492388,1720440138999,-500.0,0.00049589,120]
[331492389,1720440139054,-10162.8,0.00049589,120]
[331492390,1720440139110,-500.0,0.00049589,120]
[331492391,1720440139163,-500.0,0.00049589,120]
[331492392,1720440139216,-938.43,0.00049589,120]
[331492393,1720440139266,-500.0,0.00049589,120]
[331492394,1720440139314,-1124.37,0.00049589,120]
[331492395,1720440139362,-4983.01,0.00049589,120]
[331492396,1720440139410,-500.0,0.00049589,120]
[331492397,1720440139456,-168.65166827,0.00049589,120]
[331492398,1720440139502,-5118.07,0.00049589,120]
[331492399,1720440139549,-500.0,0.00049589,120]
[331492400,1720440139596,-500.0,0.00049589,120]
[331492401,1720440139643,-500.0,0.00049589,120]
[331492402,1720440139691,-2432.5,0.00049589,120]
[331492403,1720440139740,-500.0,0.00049589,120]
[331492404,1720440139787,-500.0,0.00049589,120]
[331492405,1720440139834,-2686.57,0.00049589,120]
[331492406,1720440139883,-5565.77,0.00049589,120]
[331492407,1720440139936,-500.0,0.00049589,120]
[331492408,1720440139991,-524.96,0.00049589,120]
[331492409,1720440140049,-500.0,0.00049589,120]
[331492410,1720440140333,-500.0,0.00049589,120]
[331492411,1720440140397,-500.0,0.00049589,120]
[331492412,1720440140451,-500.0,0.00049589,120]
[331492413,1720440140504,-500.0,0.00049589,120]
[331492414,1720440140558,-1454.12,0.00049589,120]
[331492415,1720440140610,-576.36,0.00049589,120]
[331492416,1720440140661,-500.0,0.00049589,120]
[331492417,1720440140712,-5036.27,0.00049589,120]
[331492418,1720440140767,-500.0,0.00049589,120]
[331492419,1720440140819,-2304.81,0.00049589,120]
[331492420,1720440140873,-1067.33,0.00049589,120]
[331492421,1720440140927,-500.0,0.00049589,120]
[331492422,1720440140986,-295.44799187,0.00049589,120]
[331492423,1720440141040,-500.0,0.00049589,120]
[331492424,1720440141094,-1767.38,0.00049589,120]
[331492425,1720440141152,-500.0,0.00049589,120]
[331492426,1720440141207,-254.88,0.00049589,120]
[331492427,1720440141261,-5646.1,0.00049589,120]
[331492428,1720440141314,-4919.53,0.00049589,120]
[331492429,1720440141367,-500.0,0.00049589,120]
[331492430,1720440141420,-500.0,0.00049589,120]
[331492431,1720440141472,-500.0,0.00049589,120]
[331492432,1720440141524,-500.0,0.00049589,120]
[331492433,1720440141577,-9047.3,0.00049589,120]
[331492434,1720440141629,-4701.07,0.00049589,120]
[331492435,1720440141680,-500.0,0.00049589,120]
[331492436,1720440141732,-500.0,0.00049589,120]
[331492437,1720440141784,-500.0,0.00049589,120]
[331492438,1720440141834,-1525.81,0.00049589,120]
[331492439,1720440141885,-500.0,0.00049589,120]
[331492440,1720440141946,-1659.74,0.00049589,120]
[331492441,1720440142004,-500.0,0.00049589,120]
[331492442,1720440142062,-500.0,0.00049589,120]
[331492443,1720440142118,-500.0,0.00049589,120]
[331492444,1720440142175,-4421.49,0.00049589,120]
[331492445,1720440142233,-2133.05,0.00049589,120]
[331492446,1720440142286,-315.55019352,0.00049589,120]
[331492447,1720440142341,-500.0,0.00049589,120]
[331492448,1720440142398,-7680.57,0.00049589,120]
[331492449,1720440142451,-1188.25,0.00049589,120]
[331492450,1720440142506,-3352.13,0.00049589,120]
[331492451,1720440142558,-1759.96,0.00049589,120]
[331492452,1720440142608,-500.0,0.00049589,120]
[331492453,1720440142660,-3903.92,0.00049589,120]
[331492454,1720440142715,-500.0,0.00049589,120]
[331492455,1720440142768,-500.0,0.00049589,120]
[331492456,1720440142819,-500.0,0.00049589,120]
[331492457,1720440142873,-500.0,0.00049589,120]
[331492458,1720440142927,-500.0,0.00049589,120]
[331492459,1720440142989,-1631.9,0.00049589,120]
[331492460,1720440143047,-500.0,0.00049589,120]
[331492461,1720440143105,-393.27,0.00049589,120]
[331492462,1720440143160,-5951.51,0.00049589,120]
[331492463,1720440143214,-2176.54,0.00049589,120]
[331492464,1720440143269,-3833.49,0.00049589,120]
[331492465,1720440143324,-187.27,0.00049589,120]
[331492466,1720440143404,-500.0,0.00049589,120]
[331492467,1720440143483,-5146.59,0.00049589,120]
[331492468,1720440143562,-6347.68,0.00049589,120]